[Event "UZB-ch Men 2021"]
[Site "Tashkent"]
[Date "2021.04.25"]
[Round "9.6"]
[White "Begmuratov, Khumoyun"]
[Black "Shermuhammadov, Samandar"]
[Result "1-0"]
[ECO "B01"]
[WhiteElo "1971"]
[BlackElo "2063"]
[Annotator "ChessBase"]
[PlyCount "101"]
[EventDate "2021.04.17"]
[EventType "tourn"]
[EventCountry "UZB"]
[SourceTitle "playchess.com"]
[Source "ChessBase"]
[SourceQuality "1"]
[TimeControl "5400+30"]

1. e4 {[%emt 0:00:00]} d5 {[%emt 0:00:00]} 2. exd5 {[%emt 0:00:05]} Qxd5 {[%emt 0:00:05]} 3. d4 {[%emt 0:00:16]} Nf6 {[%emt 0:00:12]} 4. c4 {[%emt 0:03:10]} Qd8 {[%emt 0:01:17]} 5. Nf3 {[%emt 0:00:13]} g6 {[%emt 0:03:53]} 6. Nc3 {[%emt 0:01:14]} Bg7 {[%emt 0:00:11]} 7. Be2 {[%emt 0:01:10]} c6 {[%emt 0:00:10]} 8. Be3 {[%emt 0:01:59]} Nbd7 {[%emt 0:01:38]} 9. Qd2 {[%emt 0:02:44]} h6 {[%emt 0:11:28]} 10. d5 {[%emt 0:04:56]} cxd5 {[%emt 0:06:27]} 11. cxd5 {[%emt 0:00:24]} a6 {[%emt 0:10:18]} 12. a4 {[%emt 0:06:36]} Nb6 {[%emt 0:10:18]} 13. Rd1 {[%emt 0:01:30]} Bd7 {[%emt 0:01:22]} 14. b3 {[%emt 0:20:48]} Nc8 {[%emt 0:01:01]} 15. Ne5 {[%emt 0:09:54]} Nd6 {[%emt 0:01:32]} 16. Bf3 {[%emt 0:01:10]} Rc8 {[%emt 0:01:10]} 17. O-O {[%emt 0:06:35]} Bf5 {[%emt 0:03:11]} 18. Bd4 {[%emt 0:01:50]} O-O {[%emt 0:04:47]} 19. Rfe1 {[%emt 0:01:42]} g5 {[%emt 0:03:42]} 20. Qe2 {[%emt 0:06:11]} Re8 {[%emt 0:06:18]} 21. g4 {[%emt 0:00:43]} Bh7 {[%emt 0:02:02]} 22. Nc4 {[%emt 0:04:22]} Nd7 {[%emt 0:03:26]} 23. Bxg7 {[%emt 0:02:42]} Kxg7 {[%emt 0:00:56]} 24. Ne4 {[%emt 0:01:34]} Nxc4 {[%emt 0:07:01]} 25. bxc4 {[%emt 0:00:01]} Qc7 {[%emt 0:00:29]} 26. Qb2+ {[%emt 0:06:28]} Kg8 {[%emt 0:01:59]} 27. Ng3 {[%emt 0:04:08]} Qb6 {[%emt 0:10:41]} 28. Qa1 {[%emt 0:02:01]} Bg6 {[%emt 0:04:52]} 29. Be4 {[%emt 0:04:20]} Bxe4 {[%emt 0:01:44]} 30. Rxe4 {[%emt 0:00:24]} Qf6 {[%emt 0:01:02]} 31. Nf5 {[%emt 0:01:50]} Kf8 {[%emt 0:00:23]} 32. Qa3 {[%emt 0:00:43]} Nc5 {[%emt 0:00:26]} 33. Re3 {[%emt 0:00:17]} h5 {[%emt 0:00:38]} 34. d6 {[%emt 0:00:42]} hxg4 {[%emt 0:00:39]} 35. Nxe7 {[%emt 0:00:23]} Nd7 {[%emt 0:00:54]} 36. Nxc8 {[%emt 0:00:41]} Rxc8 {[%emt 0:00:01]} 37. Re7 {[%emt 0:00:31]} Qf5 {[%emt 0:00:51]} 38. Qb2 {[%emt 0:00:54]} f6 {[%emt 0:01:03]} 39. Rd5 {[%emt 0:01:33]} Ne5 {[%emt 0:00:16]} 40. Qxb7 {[%emt 0:00:33]} g3 {[%emt 0:00:51]} 41. Rf7+ {[%emt 0:00:45]} Kg8 {[%emt 0:00:04]} 42. Rg7+ {[%emt 0:00:03]} Kh8 {[%emt 0:00:05]} 43. Rh7+ {[%emt 0:00:03]} Qxh7 {[%emt 0:00:06]} 44. Qxc8+ {[%emt 0:00:03]} Kg7 {[%emt 0:00:15]} 45. Qb7+ {[%emt 0:00:17]} Nf7 {[%emt 0:00:11]} 46. hxg3 {[%emt 0:00:09]} Qc2 {[%emt 0:01:28]} 47. d7 {[%emt 0:01:08]} Qe2 {[%emt 0:00:38]} 48. d8=Q {[%emt 0:00:34]} Qe1+ {[%emt 0:00:14]} 49. Kg2 {[%emt 0:00:03]} Qe4+ {[%emt 0:00:09]} 50. Kh2 {[%emt 0:00:02]} Qh7+ {[%emt 0:00:14]} 51. Kg1 {[%emt 0:00:03]} 1-0

[Event "UZB-ch Men 2021"]
[Site "Tashkent"]
[Date "2021.04.26"]
[Round "10.2"]
[White "Saydaliev, Saidakbar"]
[Black "Dzhumaev, Marat"]
[Result "1/2-1/2"]
[ECO "E73"]
[WhiteElo "2385"]
[BlackElo "2425"]
[Annotator "RC"]
[PlyCount "47"]
[EventDate "2021.04.17"]
[EventType "tourn"]
[EventCountry "UZB"]
[SourceTitle "playchess.com"]
[Source "ChessBase"]
[SourceQuality "1"]
[TimeControl "5400+30"]

1. d4 {[%emt 0:00:00]} Nf6 {[%emt 0:14:49]} 2. c4 {[%emt 0:00:09]} g6 {[%emt 0:00:11]} 3. Nc3 {[%emt 0:01:06]} Bg7 {[%emt 0:00:11]} 4. e4 {[%emt 0:02:19]} d6 {[%emt 0:00:25]} 5. Be2 {[%emt 0:00:43]} O-O {[%emt 0:02:56]} 6. Bg5 {[%emt 0:00:38]} Nc6 {[%emt 0:12:38]} 7. d5 {[%emt 0:04:58]} Ne5 {[%emt 0:01:23]} 8. Qd2 {[%emt 0:08:32]} c6 {[%emt 0:09:12]} 9. Nf3 {[%emt 0:08:22]} Nxf3+ {[%emt 0:03:37]} 10. Bxf3 {[%emt 0:05:41]} a6 {[%emt 0:00:12]} 11. O-O {[%emt 0:04:13]} Rb8 {[%emt 0:00:45]} 12. Rfe1 {[%emt 0:05:29]} Re8 {[%emt 0:02:04]} 13. h3 {[%emt 0:13:45]} Nd7 {[%emt 0:01:51]} 14. Be2 {[%emt 0:01:10]} Qa5 {[%emt 0:03:35]} 15. Bf1 {[%emt 0:04:23]} Ne5 {[%emt 0:04:51]} 16. Rac1 {[%emt 0:05:25]} b5 {[%emt 0:09:33]} 17. cxb5 {[%emt 0:04:31]} axb5 {[%emt 0:00:28]} 18. dxc6 {[%emt 0:02:03]} Nxc6 {[%emt 0:00:08]} 19. Nd5 {[%emt 0:04:59]} Qxd2 {[%emt 0:00:14]} 20. Bxd2 {[%emt 0:00:02]} Bd7 {[%emt 0:00:20]} 21. Nc7 {[%emt 0:09:11]} Rec8 {[%emt 0:00:23]} 22. Nxb5 {[%emt 0:00:19]} Bxb2 {[%emt 0:00:29]} 23. Rc2 {[%emt 0:00:11]} Bf6 {[%emt 0:02:07]} 24. Rec1 {[%emt 0:00:04]} 1/2-1/2

[Event "UZB-ch Men 2021"]
[Site "Tashkent"]
[Date "2021.04.27"]
[Round "11.4"]
[White "Dzhumaev, Marat"]
[Black "Abdisalimov, Abdimalik"]
[Result "1-0"]
[ECO "A60"]
[WhiteElo "2425"]
[BlackElo "2392"]
[Annotator "NA"]
[PlyCount "35"]
[EventDate "2021.04.17"]
[EventType "tourn"]
[EventCountry "UZB"]
[SourceTitle "playchess.com"]
[Source "ChessBase"]
[SourceQuality "1"]
[TimeControl "5400+30"]

1. d4 {[%emt 0:14:04]} Nf6 {[%emt 0:02:15]} 2. c4 {[%emt 0:00:25]} e6 {[%emt 0:00:11]} 3. Nc3 {[%emt 0:00:29]} c5 {[%emt 0:02:26]} 4. d5 {[%emt 0:00:22]} exd5 {[%emt 0:00:04]} 5. cxd5 {[%emt 0:00:11]} Bd6 {[%emt 0:03:20]} 6. e4 {[%emt 0:02:10]} O-O {[%emt 0:01:00]} 7. f4 {[%emt 0:04:08]} Nxe4 {[%emt 0:09:46]} 8. Nxe4 {[%emt 0:00:38]} Re8 {[%emt 0:00:06]} 9. Qe2 {[%emt 0:00:28]} Bf8 {[%emt 0:00:01]} 10. g4 {[%emt 0:04:01]} d6 {[%emt 0:00:43]} 11. f5 {[%emt 0:03:34]} b6 {[%emt 0:06:25]} 12. Nh3 {[%emt 0:25:28]} h5 {[%emt 0:24:27]} 13. Bg5 {[%emt 0:11:33]} Qd7 {[%emt 0:03:02]} 14. O-O-O {[%emt 0:17:24]} Na6 {[%emt 0:15:12]} 15. Nhf2 {[%emt 0:02:04]} Qa4 {[%emt 0:01:51]} 16. b3 {[%emt 0:00:39]} Qa5 {[%emt 0:00:00]} 17. Kb2 {[%emt 0:03:19]} hxg4 {[%emt 0:04:13]} 18. Qxg4 {[%emt 0:00:11]} 1-0

[Event "UZB-ch Men 2021"]
[Site "Tashkent"]
[Date "2021.04.28"]
[Round "12.1"]
[White "Saydaliev, Saidakbar"]
[Black "Shermuhammadov, Samandar"]
[Result "1/2-1/2"]
[ECO "E18"]
[WhiteElo "2385"]
[BlackElo "2063"]
[Annotator "NA"]
[PlyCount "98"]
[EventDate "2021.04.17"]
[EventType "tourn"]
[EventCountry "UZB"]
[SourceTitle "playchess.com"]
[Source "ChessBase"]
[SourceQuality "1"]
[TimeControl "5400+30"]

1. d4 {[%emt 0:00:00]} Nf6 {[%emt 0:00:00]} 2. c4 {[%emt 0:00:06]} e6 {[%emt 0:00:00]} 3. g3 {[%emt 0:02:29]} d5 {[%emt 0:00:06]} 4. Nf3 {[%emt 0:00:07]} b6 {[%emt 0:02:01]} 5. Bg2 {[%emt 0:04:41]} Bb7 {[%emt 0:00:02]} 6. Ne5 {[%emt 0:01:58]} Be7 {[%emt 0:01:17]} 7. Nc3 {[%emt 0:03:27]} O-O {[%emt 0:00:11]} 8. O-O {[%emt 0:01:20]} Qc8 {[%emt 0:03:05]} 9. cxd5 {[%emt 0:03:39]} exd5 {[%emt 0:00:21]} 10. Bf4 {[%emt 0:02:13]} Qe6 {[%emt 0:01:58]} 11. Rc1 {[%emt 0:01:39]} c6 {[%emt 0:01:52]} 12. Qb3 {[%emt 0:02:56]} Rd8 {[%emt 0:03:46]} 13. Rfe1 {[%emt 0:04:35]} Nh5 {[%emt 0:02:10]} 14. Bd2 {[%emt 0:05:43]} c5 {[%emt 0:02:15]} 15. Nb5 {[%emt 0:03:28]} Na6 {[%emt 0:04:15]} 16. Bc3 {[%emt 0:03:43]} Nf6 {[%emt 0:11:22]} 17. a3 {[%emt 0:16:57]} h6 {[%emt 0:05:07]} 18. dxc5 {[%emt 0:01:42]} Nxc5 {[%emt 0:05:19]} 19. Qa2 {[%emt 0:00:11]} Qf5 {[%emt 0:00:54]} 20. Nf3 {[%emt 0:07:16]} Nce4 {[%emt 0:01:42]} 21. Bd4 {[%emt 0:00:36]} Bc5 {[%emt 0:07:16]} 22. b4 {[%emt 0:01:36]} Bf8 {[%emt 0:01:05]} 23. h3 {[%emt 0:05:51]} Ne8 {[%emt 0:04:08]} 24. Qb2 {[%emt 0:04:19]} Ba6 {[%emt 0:04:23]} 25. Nc7 {[%emt 0:00:32]} Nxc7 {[%emt 0:00:12]} 26. Rxc7 {[%emt 0:00:01]} Bd6 {[%emt 0:06:30]} 27. Rcc1 {[%emt 0:00:46]} f6 {[%emt 0:00:14]} 28. b5 {[%emt 0:01:43]} Bb7 {[%emt 0:00:30]} 29. Be3 {[%emt 0:00:20]} Bc5 {[%emt 0:00:09]} 30. Qb3 {[%emt 0:00:24]} Rac8 {[%emt 0:02:39]} 31. Nd4 {[%emt 0:00:52]} Qe5 {[%emt 0:00:17]} 32. Rcd1 {[%emt 0:00:34]} Kh8 {[%emt 0:02:06]} 33. a4 {[%emt 0:03:32]} a5 {[%emt 0:01:28]} 34. Nf3 {[%emt 0:05:40]} Qc3 {[%emt 0:02:24]} 35. Qxc3 {[%emt 0:02:38]} Nxc3 {[%emt 0:00:01]} 36. Bxc5 {[%emt 0:00:01]} Rxc5 {[%emt 0:00:21]} 37. Ra1 {[%emt 0:01:24]} Rc4 {[%emt 0:01:07]} 38. e3 {[%emt 0:00:01]} Rxa4 {[%emt 0:00:56]} 39. Nd4 {[%emt 0:00:07]} Rxa1 {[%emt 0:00:40]} 40. Rxa1 {[%emt 0:00:00]} Rc8 {[%emt 0:00:42]} 41. Bf1 {[%emt 0:00:43]} Ne4 {[%emt 0:02:03]} 42. g4 {[%emt 0:00:40]} Rc3 {[%emt 0:00:26]} 43. f3 {[%emt 0:01:18]} Nd6 {[%emt 0:02:19]} 44. Kf2 {[%emt 0:00:05]} Bc8 {[%emt 0:00:08]} 45. Nc6 {[%emt 0:01:54]} Bb7 {[%emt 0:02:35]} 46. Ne7 {[%emt 0:01:18]} d4 {[%emt 0:02:25]} 47. e4 {[%emt 0:00:58]} d3 {[%emt 0:00:47]} 48. Rd1 {[%emt 0:00:04]} Rc2+ {[%emt 0:00:48]} 49. Ke3 {[%emt 0:08:23]} d2 {[%emt 0:18:08]} 1/2-1/2

[Event "UZB-ch Men 2021"]
[Site "Tashkent"]
[Date "2021.04.28"]
[Round "12.2"]
[White "Abdisalimov, Abdimalik"]
[Black "Begmuratov, Khumoyun"]
[Result "1/2-1/2"]
[ECO "C80"]
[WhiteElo "2392"]
[BlackElo "1971"]
[Annotator "NA"]
[PlyCount "87"]
[EventDate "2021.04.17"]
[EventType "tourn"]
[EventCountry "UZB"]
[SourceTitle "playchess.com"]
[Source "ChessBase"]
[SourceQuality "1"]
[TimeControl "5400+30"]

1. e4 {[%emt 0:00:00]} e5 {[%emt 0:00:00]} 2. Nf3 {[%emt 0:00:00]} Nc6 {[%emt 0:00:00]} 3. Bb5 {[%emt 0:00:00]} a6 {[%emt 0:00:33]} 4. Ba4 {[%emt 0:00:00]} Nf6 {[%emt 0:00:06]} 5. O-O {[%emt 0:00:00]} Nxe4 {[%emt 0:00:32]} 6. d4 {[%emt 0:00:05]} b5 {[%emt 0:00:06]} 7. Bb3 {[%emt 0:00:04]} d5 {[%emt 0:00:03]} 8. dxe5 {[%emt 0:00:06]} Be6 {[%emt 0:00:03]} 9. Nbd2 {[%emt 0:00:07]} Bc5 {[%emt 0:09:39]} 10. Nxe4 {[%emt 0:00:55]} dxe4 {[%emt 0:02:10]} 11. Bxe6 {[%emt 0:00:42]} fxe6 {[%emt 0:00:48]} 12. Ng5 {[%emt 0:00:29]} Qxd1 {[%emt 0:03:25]} 13. Rxd1 {[%emt 0:00:46]} O-O {[%emt 0:00:16]} 14. Nxe4 {[%emt 0:00:36]} Bb6 {[%emt 0:00:19]} 15. Kf1 {[%emt 0:09:25]} Rf5 {[%emt 0:02:27]} 16. f3 {[%emt 0:02:45]} Raf8 {[%emt 0:04:59]} 17. c3 {[%emt 0:03:27]} Rh5 {[%emt 0:15:24]} 18. h3 {[%emt 0:02:08]} Rxe5 {[%emt 0:01:06]} 19. Re1 {[%emt 0:01:17]} Ne7 {[%emt 0:07:07]} 20. a4 {[%emt 0:04:30]} Ng6 {[%emt 0:06:24]} 21. b4 {[%emt 0:08:15]} h6 {[%emt 0:13:18]} 22. Ra2 {[%emt 0:01:17]} Rd5 {[%emt 0:04:43]} 23. a5 {[%emt 0:01:28]} Ba7 {[%emt 0:00:06]} 24. Be3 {[%emt 0:00:04]} Bxe3 {[%emt 0:02:28]} 25. Rxe3 {[%emt 0:00:18]} e5 {[%emt 0:03:02]} 26. Ke1 {[%emt 0:02:45]} Rfd8 {[%emt 0:01:24]} 27. g3 {[%emt 0:02:59]} Rd1+ {[%emt 0:02:30]} 28. Ke2 {[%emt 0:01:33]} Rh1 {[%emt 0:00:37]} 29. Rd2 {[%emt 0:00:58]} Rh2+ {[%emt 0:01:35]} 30. Kd1 {[%emt 0:00:16]} Rdxd2+ {[%emt 0:00:03]} 31. Nxd2 {[%emt 0:00:06]} Rxh3 {[%emt 0:00:06]} 32. Ne4 {[%emt 0:00:17]} Ne7 {[%emt 0:05:28]} 33. Nc5 {[%emt 0:03:54]} Rxg3 {[%emt 0:01:15]} 34. Nxa6 {[%emt 0:00:06]} h5 {[%emt 0:05:12]} 35. Nxc7 {[%emt 0:19:32]} h4 {[%emt 0:00:16]} 36. a6 {[%emt 0:00:13]} Nc6 {[%emt 0:00:05]} 37. Ke1 {[%emt 0:01:18]} h3 {[%emt 0:01:19]} 38. Kf2 {[%emt 0:02:00]} Rg2+ {[%emt 0:00:09]} 39. Kf1 {[%emt 0:00:01]} Rg3 {[%emt 0:00:00]} 40. Re2 {[%emt 0:04:15]} Rxf3+ {[%emt 0:00:18]} 41. Kg1 {[%emt 0:00:03]} Rxc3 {[%emt 0:00:22]} 42. Nxb5 {[%emt 0:00:03]} Rc1+ {[%emt 0:00:16]} 43. Kh2 {[%emt 0:00:06]} Ra1 {[%emt 0:00:11]} 44. a7 {[%emt 0:01:20]} 1/2-1/2

[Event "UZB-ch Men 2021"]
[Site "Tashkent"]
[Date "2021.04.29"]
[Round "13.3"]
[White "Dzhumaev, Marat"]
[Black "Vakhidov, Jakhongir"]
[Result "1/2-1/2"]
[ECO "D85"]
[WhiteElo "2425"]
[BlackElo "2533"]
[Annotator "ChessBase"]
[PlyCount "31"]
[EventDate "2021.04.17"]
[EventType "tourn"]
[EventCountry "UZB"]
[SourceTitle "playchess.com"]
[Source "ChessBase"]
[SourceQuality "1"]
[TimeControl "5400+30"]

1. d4 {[%emt 0:04:57]} Nf6 {[%emt 0:00:01]} 2. c4 {[%emt 0:00:10]} g6 {[%emt 0:00:28]} 3. Nc3 {[%emt 0:00:20]} d5 {[%emt 0:00:36]} 4. cxd5 {[%emt 0:00:38]} Nxd5 {[%emt 0:00:16]} 5. e4 {[%emt 0:00:10]} Nxc3 {[%emt 0:00:37]} 6. bxc3 {[%emt 0:00:09]} Bg7 {[%emt 0:00:35]} 7. Nf3 {[%emt 0:00:54]} c5 {[%emt 0:01:09]} 8. Be3 {[%emt 0:01:37]} Qa5 {[%emt 0:01:14]} 9. Qd2 {[%emt 0:00:26]} O-O {[%emt 0:01:10]} 10. Rc1 {[%emt 0:00:57]} Rd8 {[%emt 0:00:52]} 11. d5 {[%emt 0:00:37]} e6 {[%emt 0:00:59]} 12. Bg5 {[%emt 0:00:29]} Rd6 {[%emt 0:01:06]} 13. Bf4 {[%emt 0:00:56]} Rd8 {[%emt 0:00:45]} 14. Bg5 {[%emt 0:00:24]} Rd6 {[%emt 0:00:35]} 15. Bf4 {[%emt 0:00:13]} Rd8 {[%emt 0:00:27]} 16. Bg5 {[%emt 0:00:07]} 1/2-1/2

[Event "UZB-ch Men 2021"]
[Site "Tashkent"]
[Date "2021.04.29"]
[Round "13.5"]
[White "Shermuhammadov, Samandar"]
[Black "Abdisalimov, Abdimalik"]
[Result "1/2-1/2"]
[ECO "B51"]
[WhiteElo "2063"]
[BlackElo "2392"]
[Annotator "ChessBase"]
[PlyCount "60"]
[EventDate "2021.04.17"]
[EventType "tourn"]
[EventCountry "UZB"]
[SourceTitle "playchess.com"]
[Source "ChessBase"]
[SourceQuality "1"]
[TimeControl "5400+30"]

1. e4 {[%emt 0:00:00]} c5 {[%emt 0:00:00]} 2. Nf3 {[%emt 0:00:00]} d6 {[%emt 0:00:00]} 3. Bb5+ {[%emt 0:00:00]} Nd7 {[%emt 0:00:00]} 4. d4 {[%emt 0:00:00]} Ngf6 {[%emt 0:00:01]} 5. Nc3 {[%emt 0:00:47]} a6 {[%emt 0:00:11]} 6. Bxd7+ {[%emt 0:01:09]} Nxd7 {[%emt 0:00:06]} 7. Be3 {[%emt 0:00:11]} b6 {[%emt 0:01:54]} 8. O-O {[%emt 0:01:47]} Bb7 {[%emt 0:01:36]} 9. a4 {[%emt 0:00:07]} cxd4 {[%emt 0:04:16]} 10. Qxd4 {[%emt 0:00:41]} Rc8 {[%emt 0:00:20]} 11. Rfd1 {[%emt 0:01:41]} h6 {[%emt 0:01:22]} 12. Nd2 {[%emt 0:02:08]} Rc6 {[%emt 0:05:02]} 13. Rac1 {[%emt 0:02:25]} Qc8 {[%emt 0:03:49]} 14. Nd5 {[%emt 0:11:05]} e6 {[%emt 0:00:17]} 15. Nb4 {[%emt 0:00:26]} Rc7 {[%emt 0:00:03]} 16. b3 {[%emt 0:01:46]} a5 {[%emt 0:13:44]} 17. Nd3 {[%emt 0:00:31]} e5 {[%emt 0:06:20]} 18. Qb2 {[%emt 0:00:21]} Be7 {[%emt 0:00:04]} 19. f3 {[%emt 0:01:15]} O-O {[%emt 0:00:29]} 20. c4 {[%emt 0:01:18]} f5 {[%emt 0:00:16]} 21. exf5 {[%emt 0:00:06]} Rxf5 {[%emt 0:00:07]} 22. Ne4 {[%emt 0:01:33]} Qe8 {[%emt 0:08:50]} 23. Ndf2 {[%emt 0:03:57]} Qg6 {[%emt 0:00:57]} 24. Ng3 {[%emt 0:02:26]} Rf6 {[%emt 0:03:10]} 25. Nfe4 {[%emt 0:03:43]} Re6 {[%emt 0:06:05]} 26. Nc3 {[%emt 0:01:17]} Bh4 {[%emt 0:00:23]} 27. Nd5 {[%emt 0:01:09]} Bxd5 {[%emt 0:01:49]} 28. cxd5 {[%emt 0:00:14]} Rxc1 {[%emt 0:00:04]} 29. Qxc1 {[%emt 0:01:13]} Rf6 {[%emt 0:00:25]} 30. Qc8+ {[%emt 0:01:02]} Nf8 {[%emt 0:43:20]} 1/2-1/2